bitfinex-derivatives/quotes_ETHF0:USTF0_20220108
["timestamp","ask_amount","ask_price","bid_price","bid_amount"]
[1641652528376,0.264788,3181.0,3180.4,0.66865263]
[1641652528577,1.5,3180.8,3180.4,0.66865263]
[1641652528774,13.46,3180.7,3180.4,0.66865263]
[1641652529474,13.724788,3180.7,3180.4,0.66865263]
[1641652530077,15.46479,3180.5,3180.4,0.66865263]
[1641652530678,2.00479,3180.5,3180.4,0.264788]
[1641652530877,2.00479,3181.1,3180.4,0.343388]
[1641652531078,0.640787,3181.0,3180.4,0.264788]
[1641652531577,0.264788,3180.9,3180.0,0.07858]
[1641652531777,0.264788,3180.9,3179.8,6.94565983]
[1641652531977,2.00479,3179.9,3179.8,5.374]
[1641652532377,2.00479,3179.9,3179.7,0.295788]
[1641652532578,2.00479,3179.9,3179.7,0.031]
[1641652533277,2.00479,3179.9,3179.8,0.264788]
[1641652533478,13.46,3180.4,3179.8,0.343398]
[1641652533889,0.905575,3180.3,3179.8,0.264788]
[1641652534082,13.46,3180.2,3179.8,0.264788]
[1641652534580,2.00479,3180.3,3179.8,0.264788]
[1641652534981,2.00479,3180.3,3180.1,1.5]
[1641652535180,2.00479,3180.3,3180.2,0.264788]
[1641652536284,2.00479,3180.3,3180.2,1.764788]
[1641652536485,1.03818213,3181.7,3180.2,1.764788]
[1641652536684,1.03818213,3182.1,3180.3,0.07858]
[1641652536884,1.03818213,3182.1,3180.5,1.5]
[1641652537084,0.03568179,3182.0,3180.6,0.07857]
[1641652537383,0.03568179,3182.0,3180.5,1.5712894]
[1641652537586,0.03568179,3182.0,3180.6,0.07857]
[1641652537784,0.03568179,3182.0,3180.4,0.658]
[1641652537985,13.46,3181.5,3180.9,2.00479]
[1641652538186,0.640787,3181.4,3181.0,0.264788]
[1641652538387,2.00479,3181.6,3181.0,0.264788]
[1641652538588,2.00479,3181.6,3181.0,1.843358]
[1641652538889,2.00479,3181.6,3181.0,0.343358]
[1641652539088,2.00479,3181.6,3181.1,1.5]
[1641652539387,2.00479,3181.6,3181.2,0.264788]
[1641652542191,0.640787,3181.5,3181.2,0.264788]
[1641652543191,0.640787,3181.5,3180.9,2.00479]
[1641652543391,1.498087,3181.5,3180.9,2.269578]
[1641652544995,1.762875,3181.5,3180.9,2.269578]
[1641652545796,1.762875,3181.5,3180.2,0.07857]
[1641652545996,2.00479,3180.8,3180.1,7.37879]
[1641652546196,14.100787,3180.7,3180.2,0.264788]
[1641652547600,0.640787,3180.7,3180.2,0.264788]
[1641652549206,2.00479,3180.8,3180.2,0.264788]
[1641652549405,2.00479,3180.8,3180.2,0.343388]
[1641652549602,2.00479,3180.8,3180.2,1.91484037]
[1641652550203,13.46,3181.1,3180.4,1.5]
[1641652550404,13.46,3181.1,3180.6,1.5]
[1641652550603,13.46,3181.1,3180.6,0.8126]
[1641652551005,13.46,3181.1,3180.7,0.264788]
[1641652551908,13.724788,3181.1,3180.7,0.264788]
[1641652552607,13.46,3181.1,3180.7,0.264788]
[1641652553910,0.640787,3181.2,3180.7,0.264788]
[1641652554814,0.905575,3181.2,3180.7,0.264788]
[1641652555112,0.640787,3181.2,3180.7,0.264788]
[1641652557313,1.5,3180.8,3180.1,0.07858]
[1641652557514,13.46,3180.9,3180.1,0.07858]
[1641652557714,13.46,3180.9,3179.7,0.031]
[1641652557915,0.264788,3180.8,3179.7,0.031]
[1641652558115,13.46,3180.6,3180.0,2.00479]
[1641652558316,0.640787,3180.5,3180.0,2.00479]
[1641652560619,13.46,3180.6,3180.0,2.00479]
[1641652561017,14.100787,3180.6,3180.0,2.00479]
[1641652563618,14.365575,3180.6,3180.0,2.00479]
[1641652564819,14.365575,3180.6,3179.7,2.03579]
[1641652565019,14.365575,3180.6,3179.8,0.0786]
[1641652565221,14.365575,3180.6,3179.7,3.60748688]
[1641652565420,13.46,3180.6,3179.7,3.68608688]
[1641652565621,13.46,3180.6,3179.8,1.5]
[1641652566020,0.640787,3180.5,3179.7,4.27478688]
[1641652566221,2.00479,3180.3,3179.7,4.27478688]
[1641652566520,13.46,3180.2,3179.7,2.70309]
[1641652566921,13.46,3180.2,3179.7,2.03579]
[1641652567320,2.00479,3180.3,3179.7,2.03579]
[1641652567321,2.00479,3180.3,3179.7,3.53579]
[1641652567522,2.00479,3180.3,3179.7,4.18289]
[1641652567721,2.00479,3180.3,3179.7,2.68289]
[1641652568522,2.00479,3180.3,3179.8,0.0786]
[1641652568922,2.00479,3180.3,3179.7,2.03579]
[1641652570425,2.00479,3180.3,3179.8,1.5]
[1641652570625,2.00479,3180.3,3179.9,0.0786]
[1641652571025,2.00479,3180.3,3179.8,0.0786]
[1641652572728,2.00479,3180.3,3179.9,1.29658968]
[1641652573529,2.00479,3180.3,3179.9,0.79492817]
[1641652573730,2.00479,3180.3,3179.8,0.87352817]
[1641652573929,16.105577,3180.3,3179.8,0.87352817]
[1641652574132,16.979577,3180.3,3179.8,0.87352817]
[1641652574330,17.244365,3180.3,3179.8,0.87352817]
[1641652574933,17.244365,3180.3,3179.8,0.0786]
[1641652575129,17.244365,3180.3,3179.7,2.83071817]
[1641652576130,16.979577,3180.3,3179.7,2.83071817]
[1641652576329,3.519577,3180.3,3179.7,2.83071817]
[1641652576531,13.724788,3180.2,3179.7,2.83071817]
[1641652577534,13.724788,3180.2,3179.2,1.3264633]
[1641652577535,13.46,3179.8,3179.2,1.3264633]
[1641652577731,1.57273754,3179.4,3179.0,1.591309]
[1641652577932,14.100787,3179.3,3179.0,1.591309]
[1641652578133,1.5,3179.1,3178.8,1.33089258]
[1641652578331,1.5,3179.1,3178.6,1.591309]
[1641652578332,1.5,3178.9,3178.6,1.591309]
[1641652578530,1.5729775,3179.1,3178.6,1.591309]
[1641652578531,1.5,3178.7,3178.6,1.591309]
[1641652578732,14.386588,3178.7,3178.6,1.591309]
[1641652578931,0.6618,3178.7,3178.6,1.591309]
[1641652579933,0.6618,3178.7,3177.9,0.031]
[1641652580236,2.00479,3178.4,3177.9,0.031]
[1641652580734,15.46479,3178.4,3177.9,0.031]
[1641652580934,13.46,3178.3,3177.9,0.031]
[1641652581335,2.00479,3178.4,3177.9,0.031]
[1641652582134,14.89461128,3178.3,3177.9,0.031]
[1641652582333,1.43461128,3178.3,3177.9,0.031]
[1641652583136,14.89461128,3178.3,3177.9,0.031]
[1641652583335,2.22912696,3182.2,3177.9,1.531]
[1641652583636,1.5,3179.4,3177.9,0.031]
[1641652583836,1.5,3179.4,3178.0,0.07863]
[1641652584039,1.0648411,3179.3,3177.9,0.10963]
[1641652584238,13.46,3178.7,3178.1,2.00479]
[1641652584437,14.411688,3178.7,3178.1,2.00479]
[1641652584637,14.411688,3178.7,3177.9,0.031]
[1641652584838,0.640787,3178.6,3177.9,0.031]
[1641652585939,0.264788,3178.5,3177.9,0.031]
[1641652586136,2.00479,3178.0,3177.9,0.031]
[1641652586936,15.46479,3178.8,3177.9,0.031]
[1641652587137,21.7247,3179.9,3178.4,1.5]
[1641652587339,1.57244572,3180.0,3178.5,0.07863]
[1641652587536,1.57244572,3180.0,3178.4,1.5]
[1641652587737,1.03818213,3179.9,3178.5,0.07863]
[1641652588136,13.46,3179.7,3179.1,2.00479]
[1641652588541,2.910365,3179.8,3179.1,2.00479]
[1641652588738,2.910365,3179.8,3179.1,2.0834]
[1641652589140,13.46,3179.7,3179.1,2.0834]
[1641652589340,13.46,3179.7,3179.1,2.00479]
[1641652589943,2.910365,3179.8,3179.1,2.00479]
[1641652590241,2.00479,3179.8,3179.1,4.00958]
[1641652591342,2.00479,3179.8,3179.2,0.07861]
[1641652591544,2.00479,3180.5,3179.2,0.07861]
[1641652591744,1.03818213,3181.2,3179.6,1.5]
[1641652591945,1.03818213,3181.2,3179.6,2.2378]
[1641652592143,2.00479,3181.0,3180.3,2.00479]
[1641652592346,14.100787,3180.9,3180.3,2.85659]
[1641652592946,0.264788,3180.8,3180.3,2.85659]
[1641652593144,0.3004839,3180.8,3180.3,2.85659]
[1641652593343,0.3004839,3180.8,3180.3,0.8518]
[1641652593544,0.3004839,3180.8,3179.9,2.00479]
[1641652593745,0.640787,3180.9,3179.6,21.544]
[1641652593945,2.00479,3181.0,3180.2,1.5]
[1641652594146,1.03818213,3181.5,3180.9,2.00479]
[1641652594347,1.03818213,3181.5,3180.9,2.59229]
[1641652595648,1.03818213,3181.5,3180.9,0.5875]
[1641652596248,1.03818213,3181.5,3180.9,2.59229]
[1641652596949,13.49,3181.8,3180.9,2.59229]
[1641652597148,14.99,3181.8,3180.9,2.59229]
[1641652597348,0.03568749,3181.7,3180.9,2.59229]
[1641652597550,0.905575,3181.6,3180.9,2.59229]
[1641652598151,0.264788,3181.6,3180.9,2.59229]
[1641652598851,13.49,3181.8,3180.9,2.59229]
[1641652599251,0.03568824,3181.7,3180.9,2.59229]
[1641652600053,0.640787,3181.6,3180.9,2.59229]
[1641652602555,13.49,3181.8,3180.9,2.59229]
[1641652603556,0.03568694,3181.7,3180.9,2.59229]
[1641652603756,0.640787,3181.6,3180.9,2.59229]
[1641652603958,0.905575,3181.6,3180.9,2.59229]
[1641652605560,0.640787,3181.6,3180.9,2.59229]
[1641652605961,0.80285713,3181.8,3181.5,1.5]
[1641652606158,0.80285713,3181.8,3181.7,4.00958]
[1641652606360,1.03818213,3182.1,3181.7,4.59518]
[1641652606559,1.03818213,3182.1,3181.9,1.63462812]
[1641652606758,1.03818213,3182.1,3182.0,0.07856]
[1641652606959,1.93582734,3182.8,3182.0,0.07856]
[1641652607360,0.03567824,3182.5,3182.0,0.07856]
[1641652607961,1.57820256,3182.7,3182.0,0.07856]
[1641652608361,1.57820256,3182.7,3182.6,2.00479]
[1641652608560,1.57820256,3182.7,3182.6,2.75209]
[1641652608760,1.61387837,3182.7,3182.6,2.75209]
[1641652609562,0.06567581,3182.7,3182.6,2.75209]
[1641652610962,0.06567581,3182.7,3182.6,0.61241807]
[1641652611163,0.03,3183.7,3182.6,2.11241807]
[1641652611462,0.03,3183.7,3183.0,1.5]
[1641652611663,0.03,3183.7,3183.1,0.07853]
[1641652612264,0.03,3183.7,3183.3,2.00479]
[1641652612464,0.03,3183.7,3183.3,2.75759]
[1641652615166,0.03,3183.7,3183.4,0.07852]
[1641652615967,0.670787,3183.7,3183.4,0.07852]
[1641652616169,0.670787,3183.7,3183.3,2.00479]
[1641652616369,14.714187,3183.7,3182.5,0.07852]
[1641652616568,14.714187,3183.7,3182.3,22.1453482]
[1641652616769,14.714187,3183.7,3182.3,22.2238782]
[1641652616969,1.57067487,3183.6,3182.3,20.65363]
[1641652617168,1.30358627,3183.5,3182.3,20.5751]
[1641652617571,1.30358627,3183.5,3182.1,0.07853]
[1641652617769,13.46,3183.4,3182.1,0.07853]
[1641652618372,13.46,3183.2,3182.5,2.00479]
[1641652618573,0.264788,3183.1,3182.5,2.00479]
[1641652618773,0.640787,3183.0,3182.5,2.00479]
[1641652620673,1.46289363,3182.9,3182.5,2.00479]
[1641652620876,1.5,3182.6,3181.6,0.07853]
[1641652621077,13.46,3182.6,3181.2,0.07856]
[1641652621275,1.57145731,3182.0,3180.9,21.9451]
[1641652621477,13.46,3181.9,3180.6,21.24207]
[1641652621676,13.46,3181.9,3180.6,0.07857]
[1641652622078,13.46,3181.9,3180.5,0.07857]
[1641652622278,2.00479,3181.2,3180.5,0.07857]
[1641652623678,2.00479,3181.2,3180.0,1.6501435]
[1641652623679,14.365575,3181.1,3180.0,1.6501435]
[1641652623880,1.5,3180.4,3180.0,0.07858]
[1641652624179,0.264788,3180.3,3179.7,0.031]
[1641652624379,2.00479,3180.1,3179.7,0.031]
[1641652624580,13.46,3180.0,3179.7,0.031]
[1641652624779,0.264788,3179.9,3179.7,0.031]
[1641652625179,2.00479,3180.1,3179.7,0.031]
[1641652625682,2.00479,3180.1,3179.7,2.1566]
[1641652625881,2.00479,3180.1,3179.8,0.0786]
[1641652627480,2.00479,3180.1,3179.7,2.03579]
[1641652627681,15.46479,3180.1,3179.7,2.03579]
[1641652627882,2.00479,3180.1,3179.7,2.03579]
[1641652628283,2.00479,3180.4,3179.7,4.04058]
[1641652630785,0.905575,3180.3,3179.7,4.04058]
[1641652630985,14.365575,3180.3,3179.7,4.04058]
[1641652631191,0.905575,3180.3,3179.7,4.04058]
[1641652631385,2.00479,3180.4,3179.7,4.04058]
[1641652631786,1.42434823,3180.5,3179.7,4.04058]
[1641652631986,1.42434823,3180.5,3179.8,0.0786]
[1641652632186,2.00479,3181.1,3179.8,0.0786]
[1641652632390,17.46958,3181.1,3180.1,2.00479]
[1641652632586,4.00958,3181.1,3180.1,2.00479]
[1641652633791,2.00479,3181.1,3180.1,2.00479]
[1641652633988,0.80836916,3181.3,3180.2,1.02190743]
[1641652634389,2.00479,3181.5,3180.7,2.00479]
[1641652634588,2.00479,3181.5,3180.7,4.18949]
[1641652634789,13.46,3181.8,3180.8,0.07857]
[1641652636392,13.46,3181.8,3181.7,2.00479]
[1641652636592,14.100787,3181.8,3181.7,2.60029]
[1641652636991,0.8585438,3182.2,3181.7,2.60029]
[1641652637191,1.53583424,3182.8,3181.8,1.64921514]
[1641652637391,1.02927217,3183.3,3181.8,1.64921514]
[1641652637793,0.76957448,3183.2,3181.8,1.64921514]
[1641652638192,1.57090927,3183.1,3181.8,0.07856]
[1641652638493,1.57090927,3183.1,3182.6,2.00479]
[1641652638695,0.640787,3183.0,3182.6,2.69269]
[1641652640594,0.264788,3182.9,3181.8,1.64924474]
[1641652640794,0.264788,3182.9,3181.8,1.57068474]
[1641652641895,0.264788,3182.9,3181.9,0.07854]
[1641652642495,13.46,3182.4,3181.9,0.07854]
[1641652642696,2.00479,3182.5,3181.8,1.57068474]
[1641652643898,15.46479,3182.5,3181.8,1.57068474]
[1641652644100,15.46479,3182.5,3181.7,2.00479]
[1641652644301,15.729578,3182.5,3181.7,2.00479]
[1641652645299,15.46479,3182.5,3181.7,2.00479]
[1641652645702,2.00479,3182.5,3181.7,2.00479]
[1641652646705,0.640787,3183.0,3181.9,0.94281128]
[1641652646905,0.640787,3183.0,3182.0,0.07854]
[1641652647305,0.640787,3183.0,3182.1,0.9427678]
[1641652647504,0.640787,3183.0,3182.2,0.07854]
[1641652647705,0.640787,3183.0,3182.2,0.72004]
[1641652647904,13.46,3183.2,3182.2,0.72004]
[1641652648506,0.95269179,3183.1,3182.5,2.00479]
[1641652648706,1.85826679,3183.1,3182.5,2.00479]
[1641652648905,0.95269179,3183.1,3182.5,2.00479]
[1641652649912,2.00479,3183.3,3182.5,2.00479]
[1641652650112,2.00479,3183.3,3182.5,2.94743642]
[1641652651616,1.5,3183.1,3182.5,2.00479]
[1641652651816,13.46,3183.0,3182.1,0.94277361]
[1641652652016,13.46,3183.0,3181.8,0.07853]
[1641652652213,13.46,3183.0,3181.7,2.79925668]
[1641652652413,13.46,3182.6,3181.7,2.79925668]
[1641652652614,13.46,3182.6,3181.7,2.87781668]
[1641652652913,2.00479,3182.7,3181.7,2.87781668]
[1641652652914,13.46,3182.4,3181.7,2.79925668]
[1641652653114,0.264788,3182.3,3181.7,2.79925668]
[1641652653313,0.264788,3182.3,3181.7,2.00479]
[1641652653515,0.640787,3182.2,3181.7,2.00479]
[1641652653716,0.264788,3182.1,3181.3,0.79446668]
[1641652654517,2.00479,3181.8,3181.0,2.00479]
[1641652654719,2.00479,3181.8,3181.1,0.07857]
[1641652655319,0.264788,3181.7,3181.1,0.07857]
[1641652657819,0.264788,3181.7,3181.0,2.00479]
[1641652658619,1.5,3181.5,3181.0,2.00479]
[1641652658819,0.905575,3181.4,3180.7,2.79925668]
[1641652659521,3.54882006,3181.4,3180.7,2.79925668]
[1641652659723,13.46,3181.3,3180.7,2.79925668]
[1641652659919,0.264788,3181.2,3180.7,2.79925668]
[1641652660520,0.264788,3181.2,3180.7,2.00479]
[1641652663326,0.264788,3181.2,3180.6,1.57127459]
[1641652667130,15.46479,3181.3,3180.6,1.57127459]
[1641652667930,2.00479,3181.3,3180.6,1.57127459]
[1641652668531,2.00479,3181.3,3180.7,0.07858]
[1641652669332,2.00479,3181.3,3180.9,0.94622296]
[1641652669531,2.00479,3181.8,3181.0,0.07857]
[1641652670633,2.00479,3181.8,3181.2,2.00479]
[1641652671434,2.910365,3181.8,3181.2,2.00479]
[1641652672735,2.00479,3182.2,3181.2,2.74039]
[1641652672934,2.00479,3182.2,3181.3,0.07856]
[1641652674139,0.76957448,3182.6,3181.5,1.5]
[1641652674336,0.76957448,3182.6,3181.6,0.07856]
[1641652674536,0.76957448,3182.6,3182.3,2.00479]
[1641652674736,0.76957448,3182.6,3182.3,2.77469]
[1641652675338,0.76957448,3182.6,3182.3,3.71739727]
[1641652676040,0.76957448,3182.6,3182.4,0.07854]
[1641652676238,1.02927217,3182.8,3182.4,0.07854]
[1641652676239,0.76957448,3183.1,3182.4,0.07854]
[1641652676640,0.76957448,3183.1,3182.8,2.00479]
[1641652677740,2.00479,3183.4,3182.8,2.00479]
[1641652679040,0.76957448,3183.6,3182.8,3.50479]
[1641652679241,0.76957448,3183.6,3182.9,0.07853]
[1641652679843,0.76957448,3183.6,3183.1,1.5]
[1641652680042,0.76957448,3183.6,3183.2,0.07853]
[1641652680244,0.79957448,3183.7,3183.2,0.07853]
[1641652680444,0.79957448,3183.7,3183.2,1.64849469]
[1641652680646,0.79957448,3183.7,3183.6,4.00958]
[1641652681842,0.03,3183.7,3183.6,4.00958]
[1641652682043,0.03,3183.7,3183.6,4.0881]
[1641652682449,0.03,3183.7,3183.6,4.00958]
[1641652683544,0.03,3183.7,3183.6,2.00479]
[1641652686646,0.294788,3183.7,3183.6,2.00479]
[1641652687247,0.294788,3183.7,3183.0,2.00479]
[1641652687450,13.46,3183.6,3183.0,2.00479]
[1641652687651,0.264788,3183.5,3182.3,0.07853]
[1641652687847,1.764788,3183.5,3182.2,0.79446668]
[1641652688353,1.764788,3183.5,3182.0,21.75023]
[1641652688354,1.5,3183.2,3182.0,21.75023]
[1641652688550,2.00479,3182.7,3182.0,2.00479]
[1641652689553,13.46,3183.0,3182.0,2.00479]
[1641652689750,2.00479,3183.1,3182.0,2.00479]
[1641652690050,0.76957448,3183.3,3182.1,1.57051947]
[1641652690250,0.76957448,3183.3,3182.2,0.07853]
[1641652690651,0.76957448,3183.3,3182.7,2.00479]
[1641652690853,0.905575,3183.2,3182.7,2.00479]
[1641652695359,0.905575,3183.2,3182.2,0.07853]
[1641652695560,0.905575,3183.2,3182.0,2.00479]
[1641652696467,1.67514948,3183.2,3182.0,2.00479]
[1641652696666,2.00479,3182.8,3182.0,2.00479]
[1641652696965,2.00479,3182.8,3182.0,2.94757171]
[1641652697465,2.00479,3182.8,3182.0,2.00479]
[1641652699070,0.264788,3182.7,3182.0,2.00479]
[1641652699470,1.5,3182.6,3182.0,2.00479]
[1641652699671,0.905575,3182.5,3182.0,2.00479]
[1641652701072,14.365575,3182.5,3182.0,2.00479]
[1641652701271,1.54206094,3182.4,3182.0,2.00479]
[1641652701670,1.80684894,3182.4,3182.0,2.00479]
[1641652702470,1.5,3182.2,3181.7,2.00479]
[1641652702670,0.264788,3182.1,3181.7,2.00479]
[1641652703071,1.83619592,3182.1,3181.3,0.79446668]
[1641652703271,0.264788,3182.1,3181.1,0.79446668]
[1641652703472,1.57155362,3181.8,3181.1,0.79446668]
[1641652703673,0.640787,3181.7,3181.1,0.79446668]
[1641652704273,0.905575,3181.7,3181.1,0.79446668]
[1641652704672,2.00479,3181.3,3180.8,0.79446668]
[1641652706276,2.00479,3181.3,3180.7,0.79446668]
[1641652707277,2.00479,3181.3,3180.7,1.29602007]
[1641652707675,2.00479,3181.3,3180.8,0.07858]
[1641652709277,2.00479,3181.3,3180.7,0.07858]
[1641652709880,2.00479,3181.3,3180.8,1.5]
[1641652710180,0.76957448,3182.2,3180.9,0.07858]
[1641652710681,0.76957448,3182.2,3181.5,2.00479]
[1641652710886,0.640787,3182.1,3181.5,2.59979]
[1641652711385,0.905575,3182.1,3181.5,2.59979]
[1641652713485,1.5,3181.8,3181.1,0.07856]
[1641652713685,1.5,3181.8,3180.9,0.79446668]
[1641652714486,1.5,3181.8,3180.6,2.79925668]
[1641652714687,2.00479,3181.3,3180.6,2.79925668]
[1641652714885,0.640787,3181.2,3180.6,2.79925668]
[1641652715086,1.449787,3181.2,3180.6,2.79925668]
[1641652715687,0.809,3181.2,3180.6,2.79925668]
[1641652715888,0.809,3181.2,3180.6,2.00479]
[1641652716288,2.00479,3181.3,3180.6,2.00479]
[1641652716987,0.640787,3181.2,3180.6,2.00479]
[1641652717188,2.00479,3181.3,3180.6,2.00479]
[1641652718588,0.76957448,3182.0,3180.8,1.5]
[1641652718790,0.76957448,3182.0,3181.4,2.00479]
[1641652718994,0.76957448,3182.0,3181.4,2.68309]
[1641652720092,13.46,3182.1,3181.4,2.68309]
[1641652721392,14.100787,3182.1,3181.4,2.68309]
[1641652721991,0.640787,3182.1,3181.4,2.68309]
[1641652722592,2.00479,3182.2,3181.4,2.68309]
[1641652722792,2.00479,3182.2,3181.4,2.76165]
[1641652723994,2.00479,3182.2,3181.4,2.68309]
[1641652724296,15.46479,3182.2,3181.4,2.68309]
[1641652724696,15.46479,3182.2,3181.4,2.00479]
[1641652725298,2.00479,3182.2,3181.4,2.00479]
[1641652725497,0.640787,3182.1,3181.4,2.00479]
[1641652728502,15.46479,3182.2,3181.4,2.00479]
[1641652728900,2.00479,3182.2,3181.4,2.00479]
[1641652730501,13.46,3182.1,3181.4,2.08335]
[1641652730703,14.100787,3182.1,3181.4,2.00479]
[1641652730901,2.00479,3182.2,3181.4,2.00479]
[1641652732004,13.46,3182.1,3181.4,2.00479]
[1641652732404,2.00479,3182.2,3181.4,2.00479]
[1641652732904,0.640787,3182.1,3181.4,2.00479]
[1641652733104,14.100787,3182.1,3181.4,2.00479]
[1641652735008,0.264788,3182.0,3181.4,2.00479]
[1641652735408,2.375688,3182.0,3181.0,0.87302668]
[1641652735607,1.5,3181.7,3181.0,0.79446668]
[1641652735809,0.264788,3181.6,3181.0,0.79446668]
[1641652736611,0.264788,3181.6,3180.8,0.79446668]
[1641652736810,2.00479,3181.1,3180.8,0.79446668]
[1641652737011,2.78649,3181.1,3180.8,0.79446668]
[1641652737811,2.78649,3181.1,3180.6,1.29605829]
[1641652739015,2.00479,3181.1,3180.6,0.79446668]
[1641652739217,2.00479,3181.1,3180.5,0.87303668]
[1641652740424,2.00479,3181.1,3180.7,0.79446668]
[1641652740626,2.00479,3181.1,3180.7,0.87304668]
[1641652742528,2.00479,3181.1,3180.9,0.79446668]
[1641652742726,2.00479,3181.1,3180.9,0.87304668]
[1641652742927,0.76957448,3182.1,3181.0,1.5]
[1641652743127,0.76957448,3182.1,3181.1,0.07856]
[1641652744929,0.76957448,3182.1,3181.9,2.00479]
[1641652745232,0.76957448,3182.5,3181.9,2.64499]
[1641652746031,1.41036148,3182.5,3181.9,2.64499]
[1641652746730,1.67514948,3182.5,3181.9,2.00479]
[1641652747131,0.905575,3182.5,3181.9,2.00479]
[1641652748131,0.76957448,3182.3,3181.9,2.00479]
[1641652750230,0.76957448,3182.2,3181.9,2.00479]
[1641652751233,1.07526024,3182.4,3181.9,2.00479]
[1641652751234,1.41036148,3182.4,3181.9,2.00479]
[1641652752332,0.76957448,3182.3,3181.9,2.00479]
[1641652752934,1.03436248,3182.3,3181.9,2.00479]
[1641652754231,0.76957448,3182.2,3181.9,2.00479]
[1641652756233,13.46,3182.1,3181.9,2.00479]
[1641652756836,13.724788,3182.1,3181.9,2.00479]
[1641652757034,0.264788,3182.1,3181.9,2.00479]
[1641652757236,0.76957448,3182.2,3181.9,2.00479]
[1641652757636,0.43003568,3182.3,3181.9,2.00479]
[1641652757835,1.45930785,3182.0,3181.9,2.00479]
[1641652759036,1.46476473,3182.3,3182.0,0.8286358]
[1641652759236,1.46476473,3182.3,3182.1,0.07856]
[1641652759438,0.66865442,3182.6,3182.2,1.57044301]
[1641652759636,0.66865442,3182.6,3182.3,0.07854]
[1641652759837,0.63875442,3182.6,3182.1,0.07854]
[1641652760641,0.77651284,3182.7,3182.3,1.5]
[1641652760840,0.66853575,3183.2,3182.4,0.07854]
[1641652761040,1.55302567,3183.4,3182.6,5.50958]
[1641652761441,1.55302567,3183.4,3183.0,1.57005836]
[1641652761641,1.55302567,3183.4,3183.0,0.6693]
[1641652762041,1.93582734,3183.6,3183.1,0.07853]
[1641652762441,0.77677392,3183.4,3183.1,0.07853]
[1641652762643,0.03,3183.7,3183.2,1.5]
[1641652762842,0.03,3183.7,3183.5,1.5]
[1641652763041,0.03,3183.7,3183.6,4.00958]
[1641652763244,0.03,3183.7,3183.6,4.0881]
[1641652763843,0.03,3183.7,3183.6,4.00958]
[1641652765145,0.0001,3183.7,3183.6,4.00958]
[1641652765349,0.0001,3183.7,3183.6,4.0881]
[1641652768249,0.0001,3183.7,3183.6,4.00958]
[1641652781465,0.9593,3183.7,3183.6,4.00958]
[1641652784970,0.0001,3183.7,3183.6,4.00958]
[1641652786472,0.264888,3183.7,3183.6,4.00958]
[1641652788275,0.0001,3183.7,3183.6,4.00958]
[1641652790277,0.264888,3183.7,3183.6,4.00958]
[1641652790481,1.764888,3183.7,3182.6,0.07852]
[1641652790677,1.5,3183.6,3182.6,0.07852]
[1641652790881,14.57047411,3183.5,3182.5,0.80024821]
[1641652791080,3.11526411,3183.5,3182.7,2.00479]
[1641652791280,0.264788,3183.4,3182.7,2.00479]
[1641652792781,1.764788,3183.4,3182.7,2.00479]
[1641652793381,0.264788,3183.4,3182.7,2.00479]
[1641652793581,0.264788,3183.4,3182.8,0.07853]
[1641652795782,2.00479,3183.5,3182.8,0.07853]
[1641652796185,0.0001,3183.7,3182.8,1.57853]
[1641652796385,0.0001,3183.7,3182.8,2.59125518]
[1641652796584,0.0001,3183.7,3182.8,1.02107849]
[1641652797286,0.0001,3183.7,3183.6,2.00479]
[1641652797586,0.0001,3183.7,3183.6,2.78189]
[1641652803192,0.0001,3183.7,3183.6,4.78668]
[1641652805695,1.5001,3183.7,3183.0,0.07852]
[1641652805896,1.5,3183.4,3182.9,0.80024821]
[1641652806296,1.57097097,3183.0,3182.5,0.87877821]
[1641652806496,1.57097097,3183.0,3182.5,0.80024821]
[1641652806497,2.83525797,3183.0,3182.5,0.80024821]
[1641652806696,1.264287,3183.0,3182.5,0.80024821]
[1641652807295,1.264287,3183.0,3182.5,0.87877821]
[1641652807697,0.640787,3183.0,3182.5,0.07853]
[1641652808495,2.269578,3183.1,3182.5,0.07853]
[1641652808695,2.00479,3183.1,3182.7,0.07853]
[1641652809196,2.645577,3183.1,3182.7,0.07853]
[1641652810801,0.264788,3183.0,3182.7,0.07853]
[1641652811099,0.264788,3183.0,3182.6,0.94259609]
[1641652812400,0.264788,3183.0,3182.4,2.00479]
[1641652814201,0.264788,3183.0,3182.4,2.80503821]
[1641652814603,0.77659525,3183.5,3182.6,1.5]
[1641652814803,0.77659525,3183.5,3182.7,3.30985973]
[1641652815204,0.77659525,3183.5,3183.4,4.00958]
[1641652815405,0.77669525,3183.7,3183.4,4.00958]
[1641652816807,0.0001,3183.7,3183.4,4.00958]
[1641652819312,0.0001,3183.7,3183.4,4.80982821]
[1641652821614,0.0001,3183.7,3183.4,4.00958]
[1641652824719,0.0001,3183.7,3183.4,3.99957999]
[1641652824919,0.264788,3183.6,3183.4,4.7998282]
[1641652825119,0.0001,3183.7,3183.4,4.7998282]
[1641652827521,0.0001,3183.7,3183.5,39.44950101]
[1641652827721,0.0001,3183.7,3183.6,6.25049034]
[1641652827924,9.525e-05,3183.9,3183.6,6.25049034]
[1641652829022,1.03122206,3184.2,3183.6,6.25049034]
[1641652829222,1.03122206,3184.2,3184.1,4.00958]
[1641652829425,1.03122206,3184.4,3184.1,4.71368]
[1641652830628,1.36844618,3184.5,3184.1,4.71368]
[1641652831026,1.35844618,3184.5,3184.1,6.21368]
[1641652831227,1.35844618,3184.5,3184.4,1.5]
[1641652831427,0.66834014,3184.8,3184.4,1.57849]
[1641652831628,0.028,3184.6,3184.5,0.07849]
[1641652832126,0.028,3184.6,3184.2,0.07849]